[Event "Lueneburger Schachfestival IM 2019"]
[Site "Lueneburg"]
[Date "2019.08.03"]
[Round "2.5"]
[White "Pubantz, Jan"]
[Black "Souleidis, Georgios"]
[Result "1/2-1/2"]
[ECO "E63"]
[WhiteElo "2214"]
[BlackElo "2426"]
[Annotator "NA"]
[PlyCount "177"]
[EventDate "2019.08.02"]
[EventType "tourn"]
[EventCountry "GER"]
[SourceTitle "playchess.com"]
[Source "ChessBase"]
[SourceQuality "1"]
[TimeControl "40/5400+30:1800+30"]

1. d4 {[%emt 0:00:00]} Nf6 {[%emt 0:00:00]} 2. c4 {[%emt 0:00:00]} g6 {[%emt 0:00:00]} 3. g3 {[%emt 0:00:00]} Bg7 {[%emt 0:00:00]} 4. Bg2 {[%emt 0:00:10]} O-O {[%emt 0:00:00]} 5. Nc3 {[%emt 0:01:45]} d6 {[%emt 0:00:00]} 6. Nf3 {[%emt 0:00:45]} Nc6 {[%emt 0:00:05]} 7. O-O {[%emt 0:00:51]} a6 {[%emt 0:00:57]} 8. b3 {[%emt 0:09:16]} Rb8 {[%emt 0:00:08]} 9. d5 {[%emt 0:10:14]} Na5 {[%emt 0:08:55]} 10. Bg5 {[%emt 0:13:38]} c5 {[%emt 0:05:27]} 11. dxc6 {[%emt 0:00:47]} Nxc6 {[%emt 0:00:35]} 12. Rc1 {[%emt 0:02:17]} Bd7 {[%emt 0:13:05]} 13. Nd5 {[%emt 0:20:02]} Nxd5 {[%emt 0:20:41]} 14. cxd5 {[%emt 0:09:23]} Ne5 {[%emt 0:00:24]} 15. Nxe5 {[%emt 0:10:35]} Bxe5 {[%emt 0:00:11]} 16. Qd2 {[%emt 0:00:53]} Re8 {[%emt 0:02:48]} 17. Rc2 {[%emt 0:01:47]} Rc8 {[%emt 0:04:23]} 18. Rfc1 {[%emt 0:00:49]} Bf6 {[%emt 0:11:20]} 19. Bxf6 exf6 {[%emt 0:00:02]} 20. Bf3 {[%emt 0:10:50]} Kg7 {[%emt 0:06:22]} 21. Qd4 {[%emt 0:01:10]} Qa5 {[%emt 0:03:20]} 22. Kg2 {[%emt 0:02:58]} Rxc2 {[%emt 0:02:53]} 23. Rxc2 {[%emt 0:00:01]} Rc8 {[%emt 0:03:38]} 24. Rxc8 {[%emt 0:01:30]} Bxc8 {[%emt 0:00:05]} 25. a4 {[%emt 0:01:31]} Qc7 {[%emt 0:02:19]} 26. Qc4 {[%emt 0:01:13]} Qxc4 {[%emt 0:00:35]} 27. bxc4 {[%emt 0:00:01]} a5 {[%emt 0:00:08]} 28. e3 {[%emt 0:00:57]} Bf5 {[%emt 0:07:16]} 29. e4 {[%emt 0:00:22]} Bd7 {[%emt 0:00:08]} 30. Bd1 {[%emt 0:00:07]} f5 {[%emt 0:01:18]} 31. f3 {[%emt 0:00:06]} fxe4 {[%emt 0:00:04]} 32. fxe4 {[%emt 0:00:03]} Kf6 {[%emt 0:00:31]} 33. Kf3 {[%emt 0:00:14]} Ke5 {[%emt 0:00:07]} 34. Ke3 {[%emt 0:00:07]} b6 {[%emt 0:01:21]} 35. Bc2 {[%emt 0:01:31]} g5 {[%emt 0:02:12]} 36. Bd1 {[%emt 0:00:49]} h6 {[%emt 0:01:13]} 37. Bc2 {[%emt 0:00:20]} Bg4 {[%emt 0:00:28]} 38. Bb3 {[%emt 0:00:45]} Bh5 {[%emt 0:00:07]} 39. Bc2 {[%emt 0:00:46]} Bg4 {[%emt 0:01:27]} 40. Bb3 {[%emt 0:00:21]} Bh3 {[%emt 0:00:05]} 41. Bc2 {[%emt 0:06:30]} Bf1 {[%emt 0:01:55]} 42. Bd3 {[%emt 0:05:33]} Bh3 {[%emt 0:06:53]} 43. Bc2 {[%emt 0:04:03]} f6 {[%emt 0:03:32]} 44. Bd3 {[%emt 0:02:13]} Bc8 {[%emt 0:03:04]} 45. Bb1 {[%emt 0:02:49]} Bh3 {[%emt 0:04:45]} 46. Bd3 {[%emt 0:01:49]} Bg4 {[%emt 0:00:05]} 47. Bc2 {[%emt 0:00:43]} Bd7 {[%emt 0:00:42]} 48. Bd1 {[%emt 0:04:12]} Be8 {[%emt 0:00:54]} 49. Bc2 {[%emt 0:00:37]} Bg6 {[%emt 0:00:05]} 50. Bd3 {[%emt 0:00:53]} Bh5 {[%emt 0:00:50]} 51. Bc2 {[%emt 0:01:28]} Bg4 {[%emt 0:00:05]} 52. Bb3 {[%emt 0:01:04]} Bh3 {[%emt 0:01:53]} 53. Bc2 {[%emt 0:00:36]} Bd7 {[%emt 0:04:02]} 54. Bd1 {[%emt 0:00:43]} f5 {[%emt 0:00:11]} 55. exf5 {[%emt 0:01:24]} Bxf5 {[%emt 0:00:12]} 56. Bb3 {[%emt 0:03:54]} Bb1 {[%emt 0:00:22]} 57. Bd1 {[%emt 0:00:23]} Ba2 {[%emt 0:01:21]} 58. Kd3 {[%emt 0:00:18]} Bb1+ {[%emt 0:00:04]} 59. Ke3 {[%emt 0:00:06]} Bf5 {[%emt 0:00:33]} 60. Bb3 {[%emt 0:00:14]} Bh3 {[%emt 0:00:04]} 61. Bc2 {[%emt 0:00:46]} h5 {[%emt 0:00:47]} 62. Bb3 {[%emt 0:01:17]} h4 {[%emt 0:00:31]} 63. Bc2 {[%emt 0:00:27]} Bf1 {[%emt 0:00:46]} 64. Bb3 {[%emt 0:00:17]} Kf5 {[%emt 0:03:16]} 65. Kf2 {[%emt 0:00:29]} Bd3 {[%emt 0:00:21]} 66. Ke3 {[%emt 0:00:07]} Bb1 {[%emt 0:01:09]} 67. Bd1 {[%emt 0:00:34]} Ke5 {[%emt 0:01:06]} 68. Bb3 {[%emt 0:00:14]} Bf5 {[%emt 0:00:29]} 69. Bd1 {[%emt 0:00:27]} Bh3 {[%emt 0:02:58]} 70. Bc2 {[%emt 0:01:02]} Bd7 {[%emt 0:03:21]} 71. Bb3 {[%emt 0:00:34]} Be8 {[%emt 0:00:12]} 72. Bc2 {[%emt 0:00:38]} Bh5 {[%emt 0:00:22]} 73. Bb3 {[%emt 0:00:22]} Bg6 {[%emt 0:00:13]} 74. Bd1 {[%emt 0:00:32]} Be4 {[%emt 0:00:07]} 75. Bb3 {[%emt 0:00:22]} Bg2 {[%emt 0:00:06]} 76. Bc2 {[%emt 0:00:37]} Bf1 {[%emt 0:00:15]} 77. Bb3 {[%emt 0:00:11]} hxg3 {[%emt 0:00:22]} 78. hxg3 {[%emt 0:00:07]} Bh3 {[%emt 0:01:15]} 79. Bc2 {[%emt 0:00:46]} Bd7 {[%emt 0:00:07]} 80. Bd1 {[%emt 0:00:37]} Be8 {[%emt 0:01:16]} 81. Bc2 {[%emt 0:00:40]} Bh5 {[%emt 0:00:26]} 82. Bb3 {[%emt 0:00:08]} Bf7 {[%emt 0:00:13]} 83. Bd1 {[%emt 0:01:07]} Bg6 {[%emt 0:00:04]} 84. Bb3 {[%emt 0:00:12]} Be8 {[%emt 0:00:07]} 85. Bc2 {[%emt 0:00:18]} Bh5 {[%emt 0:01:07]} 86. Bb3 {[%emt 0:00:12]} Bg6 {[%emt 0:00:17]} 87. Bd1 {[%emt 0:00:18]} Bf7 {[%emt 0:00:07]} 88. Bc2 {[%emt 0:00:28]} Be8 {[%emt 0:00:01]} 89. Bb3 {[%emt 0:00:26]} 1/2-1/2

[Event "Lueneburger Schachfestival IM 2019"]
[Site "Lueneburg"]
[Date "2019.08.04"]
[Round "3.1"]
[White "Souleidis, Georgios"]
[Black "Chennaoui, Yasin"]
[Result "1-0"]
[ECO "C41"]
[WhiteElo "2426"]
[BlackElo "2092"]
[Annotator "ChessBase"]
[PlyCount "53"]
[EventDate "2019.08.02"]
[EventType "tourn"]
[EventCountry "GER"]
[SourceTitle "playchess.com"]
[Source "ChessBase"]
[SourceQuality "1"]
[TimeControl "40/5400+30:1800+30"]

1. e4 {[%emt 0:00:00]} d6 {[%emt 0:00:00]} 2. d4 {[%emt 0:00:00]} Nf6 {[%emt 0:00:00]} 3. Nc3 {[%emt 0:00:00]} e5 {[%emt 0:00:00]} 4. Nf3 {[%emt 0:00:00]} Nbd7 {[%emt 0:00:00]} 5. Bc4 {[%emt 0:00:00]} Be7 {[%emt 0:00:00]} 6. O-O {[%emt 0:00:10]} Nb6 {[%emt 0:01:11]} 7. Be2 {[%emt 0:00:32]} exd4 {[%emt 0:03:30]} 8. Nxd4 {[%emt 0:00:06]} c5 {[%emt 0:02:17]} 9. Bb5+ {[%emt 0:08:02]} Bd7 {[%emt 0:06:12]} 10. Nf5 {[%emt 0:02:11]} O-O {[%emt 0:00:59]} 11. Bxd7 {[%emt 0:00:18]} Qxd7 {[%emt 0:00:27]} 12. Bg5 {[%emt 0:03:16]} Rfe8 {[%emt 0:04:26]} 13. Qf3 {[%emt 0:08:03]} Nfd5 {[%emt 0:12:43]} 14. Nxd5 {[%emt 0:15:04]} Bxg5 {[%emt 0:05:23]} 15. Qg4 {[%emt 0:00:48]} Qd8 {[%emt 0:00:51]} 16. Rad1 {[%emt 0:00:13]} Re6 {[%emt 0:02:20]} 17. Nf4 {[%emt 0:07:36]} h5 {[%emt 0:07:54]} 18. Qg3 {[%emt 0:01:05]} h4 {[%emt 0:03:52]} 19. Qg4 {[%emt 0:00:08]} Re5 {[%emt 0:02:03]} 20. Rxd6 {[%emt 0:01:17]} Qf8 {[%emt 0:00:04]} 21. Rxb6 {[%emt 0:21:55]} axb6 {[%emt 0:04:07]} 22. Qxg5 {[%emt 0:00:03]} Rxe4 {[%emt 0:02:10]} 23. Nd5 {[%emt 0:06:05]} f6 {[%emt 0:01:47]} 24. Qg6 {[%emt 0:00:05]} Rae8 {[%emt 0:01:23]} 25. Nh6+ {[%emt 0:00:31]} Kh8 {[%emt 0:00:15]} 26. Nf7+ {[%emt 0:00:16]} Kg8 {[%emt 0:00:03]} 27. Nxf6# {[%emt 0:00:05]} 1-0

[Event "Lueneburger Schachfestival IM 2019"]
[Site "Lueneburg"]
[Date "2019.08.04"]
[Round "3.2"]
[White "Carlstedt, Jonathan"]
[Black "Pubantz, Jan"]
[Result "1/2-1/2"]
[ECO "D05"]
[WhiteElo "2408"]
[BlackElo "2214"]
[Annotator "ChessBase"]
[PlyCount "53"]
[EventDate "2019.08.02"]
[EventType "tourn"]
[EventCountry "GER"]
[SourceTitle "playchess.com"]
[Source "ChessBase"]
[SourceQuality "1"]
[TimeControl "40/5400+30:1800+30"]

1. d4 {[%emt 0:00:00]} Nf6 {[%emt 0:00:00]} 2. Nf3 {[%emt 0:00:00]} d5 {[%emt 0:00:00]} 3. e3 {[%emt 0:00:00]} e6 {[%emt 0:04:43]} 4. Bd3 {[%emt 0:00:22]} b6 {[%emt 0:09:30]} 5. Nbd2 {[%emt 0:01:03]} Bb7 {[%emt 0:01:16]} 6. Qe2 {[%emt 0:04:58]} Nbd7 {[%emt 0:05:29]} 7. e4 {[%emt 0:08:22]} dxe4 {[%emt 0:00:41]} 8. Nxe4 {[%emt 0:00:05]} Be7 {[%emt 0:06:37]} 9. Neg5 {[%emt 0:05:14]} O-O {[%emt 0:13:45]} 10. h4 {[%emt 0:02:47]} c5 {[%emt 0:06:19]} 11. Be3 {[%emt 0:03:20]} cxd4 {[%emt 0:09:45]} 12. Bxd4 {[%emt 0:02:17]} Nc5 {[%emt 0:07:37]} 13. Bxc5 {[%emt 0:05:35]} bxc5 {[%emt 0:03:22]} 14. O-O-O {[%emt 0:00:57]} Qa5 {[%emt 0:03:25]} 15. Bc4 {[%emt 0:00:34]} Qb6 {[%emt 0:07:23]} 16. Ne5 {[%emt 0:05:09]} Bd5 {[%emt 0:04:19]} 17. Rhe1 {[%emt 0:03:34]} Bd6 {[%emt 0:03:47]} 18. f4 {[%emt 0:06:38]} Bxe5 {[%emt 0:03:16]} 19. fxe5 {[%emt 0:00:16]} Bxc4 {[%emt 0:00:20]} 20. Qxc4 {[%emt 0:00:07]} Nd5 {[%emt 0:00:17]} 21. Rd3 {[%emt 0:17:22]} Rab8 {[%emt 0:01:14]} 22. Rb3 {[%emt 0:02:41]} Qa5 {[%emt 0:00:31]} 23. Qe4 {[%emt 0:00:40]} g6 {[%emt 0:00:31]} 24. Ra3 {[%emt 0:06:42]} Qb6 {[%emt 0:02:35]} 25. Rb3 {[%emt 0:00:24]} Qa5 {[%emt 0:00:20]} 26. Ra3 {[%emt 0:00:57]} Qb6 {[%emt 0:00:18]} 27. Rb3 {[%emt 0:00:48]} 1/2-1/2

[Event "Lueneburger Schachfestival IM 2019"]
[Site "Lueneburg"]
[Date "2019.08.04"]
[Round "3.3"]
[White "Ertan, Can"]
[Black "Stork, Oliver"]
[Result "1/2-1/2"]
[ECO "B12"]
[WhiteElo "2396"]
[BlackElo "2322"]
[Annotator "NA"]
[PlyCount "133"]
[EventDate "2019.08.02"]
[EventType "tourn"]
[EventCountry "GER"]
[SourceTitle "playchess.com"]
[Source "ChessBase"]
[SourceQuality "1"]
[TimeControl "40/5400+30:1800+30"]

1. e4 {[%emt 0:00:00]} c6 {[%emt 0:00:00]} 2. d4 {[%emt 0:00:00]} d5 {[%emt 0:00:00]} 3. e5 {[%emt 0:00:00]} c5 {[%emt 0:00:00]} 4. dxc5 {[%emt 0:01:15]} Nc6 {[%emt 0:00:00]} 5. f4 {[%emt 0:00:07]} (5. Bb5 e6 6. Be3 Nge7 7. c3 Bd7 8. Bxc6 Nxc6 9. f4 Qc7 10. Nf3 Na5 11. b4 Nc4 12. Bd4 b6 13. cxb6 axb6 14. O-O Be7 15. Nfd2 O-O 16. Nxc4 dxc4 {½-½ (44) Jakovenko,D (2752)-Granda Zuniga,J (2641) Porto Carras 2018}) 5... e6 {[%emt 0:05:32]} 6. Be3 {[%emt 0:00:20] B12: Caro-Kann: Advance Variation} d4 {[%emt 0:08:12]} 7. Bf2 {[%emt 0:00:39]} Bxc5 {[%emt 0:00:13]} 8. Nd2 {[%emt 0:04:01]} Nge7 {[%emt 0:08:44]} 9. Ne4 {[%emt 0:05:35]} Qa5+ {[%emt 0:09:23]} 10. Qd2 {[%emt 0:00:32]} Qxd2+ {[%emt 0:01:12]} 11. Kxd2 {[%emt 0:00:37]} Bb4+ {[%emt 0:00:59]} 12. c3 $146 {[%emt 0:00:09]} ({Predecessor:} 12. Kc1 Nf5 {1-0 (52) Ostos,J (2326)-Otero Munelo,H (2113) San Cristobal 2012}) 12... Ba5 {[%emt 0:01:15]} 13. Nd6+ {[%emt 0:07:09]} Kf8 {[%emt 0:00:08]} 14. Bd3 {[%emt 0:10:18]} g5 {[%emt 0:17:52]} 15. fxg5 {[%emt 0:15:07]} dxc3+ {[%emt 0:04:29]} 16. bxc3 {[%emt 0:00:05]} Nxe5 {[%emt 0:03:09]} 17. Be4 {[%emt 0:00:20]} Bc7 {[%emt 0:08:48]} 18. Nxc8 {[%emt 0:05:11]} Rxc8 {[%emt 0:00:52]} 19. Bxb7 {[%emt 0:09:50]} Rb8 {[%emt 0:01:25]} 20. Rb1 {[%emt 0:00:04]} Nc4+ {[%emt 0:03:19]} 21. Ke2 {[%emt 0:03:18]} Nd6 {[%emt 0:07:24]} 22. Bg3 {[%emt 0:00:08]} Nd5 {[%emt 0:00:21]} 23. Bxd6+ {[%emt 0:06:39]} Bxd6 {[%emt 0:00:03]} 24. Kd3 {[%emt 0:00:31]} Kg7 {[%emt 0:04:33]} 25. Ne2 {[%emt 0:00:18]} Nf4+ {[%emt 0:02:53]} 26. Nxf4 {[%emt 0:00:28]} Bxf4 {[%emt 0:00:05]} 27. h4 {[%emt 0:01:44]} Rhd8+ {[%emt 0:03:29]} 28. Ke4 {[%emt 0:29:35]} Bg3 {[%emt 0:02:26]} 29. Ke3 {[%emt 0:05:00]} Rd7 {[%emt 0:01:54]} 30. Be4 {[%emt 0:01:54]} Rc8 {[%emt 0:00:06]} 31. Rb3 {[%emt 0:00:57]} Rdc7 {[%emt 0:01:02]} 32. Kd2 {[%emt 0:02:40]} Rc4 {[%emt 0:00:51]} 33. Kd3 {[%emt 0:00:04]} Ra4 {[%emt 0:05:51]} 34. Rb2 {[%emt 0:09:16]} Be5 {[%emt 0:03:07]} 35. Rc2 {[%emt 0:01:47]} Ra3 {[%emt 0:02:24]} 36. Rhc1 {[%emt 0:00:35]} Bf4 {[%emt 0:00:27]} 37. Rb1 {[%emt 0:00:06]} Ra4 {[%emt 0:00:36]} 38. c4 {[%emt 0:03:26]} Rc5 {[%emt 0:00:37]} 39. Rb3 {[%emt 0:03:13]} Be5 {[%emt 0:00:28]} 40. Rb5 {[%emt 0:03:09]} Ra3+ {[%emt 0:00:24]} 41. Ke2 {[%emt 0:31:05]} Bd4 {[%emt 0:04:08]} 42. Bd3 {[%emt 0:00:00]} e5 {[%emt 0:09:07]} 43. Rb3 {[%emt 0:00:00]} Ra4 {[%emt 0:00:50]} 44. h5 {[%emt 0:00:00]} e4 $14 {[%emt 0:01:41]} 45. h6+ {[%emt 0:00:00]} Kg6 {[%emt 0:00:20]} 46. Bxe4+ {[%emt 0:00:00]} Kxg5 {[%emt 0:00:07]} 47. Kd3 {[%emt 0:00:00]} Be5 {[%emt 0:02:13]} 48. Bxh7 {[%emt 0:00:00]} Kxh6 {[%emt 0:00:18]} 49. Be4 {[%emt 0:00:00]} f6 {[%emt 0:08:04]} 50. Rb7 {[%emt 0:00:00]} Ra3+ {[%emt 0:00:54]} 51. Ke2 {[%emt 0:07:44]} Kg5 {[%emt 0:00:48]} 52. Rg7+ {[%emt 0:00:23]} Kf4 {[%emt 0:03:32]} 53. Bd5 {[%emt 0:00:05]} Bd4 {[%emt 0:02:07]} 54. Rd2 {[%emt 0:01:45]} Bc3 {[%emt 0:01:31]} 55. g3+ {[%emt 0:00:59]} Ke5 {[%emt 0:00:41]} 56. Rc2 {[%emt 0:00:37]} Rca5 {[%emt 0:00:52]} 57. Re7+ {[%emt 0:04:49]} Kd4 {[%emt 0:00:18]} 58. Re3 {[%emt 0:00:50]} Bb4 {[%emt 0:00:30]} 59. Rxa3 {[%emt 0:00:54]} Rxa3 {[%emt 0:00:14]} 60. Kf2 {[%emt 0:00:43]} Kd3 {[%emt 0:01:00]} 61. Re2 {[%emt 0:00:26]} Bc5+ {[%emt 0:00:38]} 62. Kf3 {[%emt 0:00:16]} Kd4+ {[%emt 0:00:32]} 63. Kg4 {[%emt 0:00:26]} Bd6 {[%emt 0:00:18]} 64. Kf5 {[%emt 0:00:42]} Rxg3 {[%emt 0:00:36]} 65. Kxf6 {[%emt 0:00:04]} Re3 {[%emt 0:00:32]} 66. Rb2 {[%emt 0:01:06]} Bc5 {[%emt 0:00:37]} 67. Kf5 {[%emt 0:00:37]} 1/2-1/2

[Event "Lueneburger Schachfestival IM 2019"]
[Site "Lueneburg"]
[Date "2019.08.04"]
[Round "3.4"]
[White "Knuedel, Torben"]
[Black "Schulze, Lara"]
[Result "0-1"]
[ECO "B69"]
[WhiteElo "2151"]
[BlackElo "2253"]
[Annotator "ChessBase"]
[PlyCount "84"]
[EventDate "2019.08.02"]
[EventType "tourn"]
[EventCountry "GER"]
[SourceTitle "playchess.com"]
[Source "ChessBase"]
[SourceQuality "1"]
[TimeControl "40/5400+30:1800+30"]

1. e4 {[%emt 0:00:00]} c5 {[%emt 0:00:00]} 2. Nf3 {[%emt 0:00:00]} Nc6 {[%emt 0:00:00]} 3. d4 {[%emt 0:00:00]} cxd4 {[%emt 0:00:00]} 4. Nxd4 {[%emt 0:00:00]} Nf6 {[%emt 0:00:00]} 5. Nc3 {[%emt 0:00:00]} d6 {[%emt 0:00:00]} 6. Bg5 {[%emt 0:00:00]} e6 {[%emt 0:00:00]} 7. Qd2 {[%emt 0:00:06]} a6 {[%emt 0:00:08]} 8. O-O-O {[%emt 0:00:07]} Bd7 {[%emt 0:00:08]} 9. f4 {[%emt 0:00:06]} Be7 {[%emt 0:00:19]} 10. Nf3 {[%emt 0:01:26]} b5 {[%emt 0:00:25]} 11. Bxf6 {[%emt 0:00:36]} gxf6 {[%emt 0:00:47]} 12. Kb1 {[%emt 0:03:30]} Qb6 {[%emt 0:00:29]} 13. f5 {[%emt 0:01:22]} O-O-O {[%emt 0:00:21]} 14. fxe6 {[%emt 0:00:43]} fxe6 {[%emt 0:00:09]} 15. g3 {[%emt 0:01:36]} Kb8 {[%emt 0:01:10]} 16. Bh3 {[%emt 0:04:18]} Na5 {[%emt 0:00:22]} 17. Nd4 {[%emt 0:16:02]} b4 {[%emt 0:05:22]} 18. Nce2 {[%emt 0:04:57]} e5 {[%emt 0:00:43]} 19. Bxd7 {[%emt 0:08:26]} Rxd7 {[%emt 0:00:16]} 20. Nf5 {[%emt 0:00:28]} Nc4 {[%emt 0:00:39]} 21. Qd5 {[%emt 0:10:50]} Rc8 {[%emt 0:05:22]} 22. Rhf1 {[%emt 0:25:35]} Bf8 {[%emt 0:03:29]} 23. Nc1 {[%emt 0:11:43]} Rdc7 {[%emt 0:10:10]} 24. Qd3 {[%emt 0:00:06]} a5 {[%emt 0:04:57]} 25. Rde1 {[%emt 0:01:31]} a4 {[%emt 0:07:59]} 26. Ne3 {[%emt 0:03:36]} Nxe3 {[%emt 0:19:17]} 27. Qxe3 {[%emt 0:00:02]} Qxe3 {[%emt 0:01:25]} 28. Rxe3 {[%emt 0:00:02]} Rxc2 {[%emt 0:00:16]} 29. Nd3 {[%emt 0:01:36]} Bh6 {[%emt 0:04:25]} 30. Ref3 {[%emt 0:01:07]} d5 {[%emt 0:02:50]} 31. Rxf6 {[%emt 0:03:41]} dxe4 {[%emt 0:06:46]} 32. Rb6+ {[%emt 0:00:05]} Ka7 {[%emt 0:04:16]} 33. Rxh6 {[%emt 0:00:06]} exd3 {[%emt 0:00:11]} 34. Rf7+ {[%emt 0:00:31]} R8c7 {[%emt 0:00:56]} 35. Rxc7+ {[%emt 0:00:06]} Rxc7 {[%emt 0:00:04]} 36. Rd6 {[%emt 0:00:18]} e4 {[%emt 0:00:50]} 37. Rd4 {[%emt 0:00:25]} Ka6 {[%emt 0:05:25]} 38. g4 {[%emt 0:02:38]} Kb5 {[%emt 0:01:52]} 39. h4 {[%emt 0:01:03]} b3 {[%emt 0:02:17]} 40. axb3 {[%emt 0:00:11]} axb3 {[%emt 0:00:04]} 41. g5 {[%emt 0:01:29]} Rc2 {[%emt 0:02:42]} 42. Rd5+ {[%emt 0:04:39]} Kc4 {[%emt 0:01:17]} 0-1

[Event "Lueneburger Schachfestival IM 2019"]
[Site "Lueneburg"]
[Date "2019.08.04"]
[Round "3.5"]
[White "Aarav Dengla"]
[Black "Kahlert, Thomas"]
[Result "0-1"]
[ECO "C99"]
[WhiteElo "2038"]
[BlackElo "2152"]
[Annotator "ChessBase"]
[PlyCount "80"]
[EventDate "2019.08.02"]
[EventType "tourn"]
[EventCountry "GER"]
[SourceTitle "playchess.com"]
[Source "ChessBase"]
[SourceQuality "1"]
[TimeControl "40/5400+30:1800+30"]

1. e4 {[%emt 0:00:00]} e5 {[%emt 0:00:00]} 2. Nf3 {[%emt 0:00:00]} Nc6 {[%emt 0:00:00]} 3. Bb5 {[%emt 0:00:00]} a6 {[%emt 0:00:00]} 4. Ba4 {[%emt 0:00:00]} Nf6 {[%emt 0:00:00]} 5. O-O {[%emt 0:00:00]} Be7 {[%emt 0:00:13]} 6. Re1 {[%emt 0:00:07]} b5 {[%emt 0:00:07]} 7. Bb3 {[%emt 0:00:04]} d6 {[%emt 0:00:05]} 8. c3 {[%emt 0:00:44]} O-O {[%emt 0:00:09]} 9. h3 {[%emt 0:00:13]} Na5 {[%emt 0:00:33]} 10. Bc2 {[%emt 0:00:03]} c5 {[%emt 0:00:09]} 11. d4 {[%emt 0:02:11]} Qc7 {[%emt 0:00:21]} 12. Nbd2 {[%emt 0:00:37]} cxd4 {[%emt 0:00:08]} 13. cxd4 {[%emt 0:00:07]} Bd7 {[%emt 0:00:13]} 14. Nf1 {[%emt 0:03:19]} Rac8 {[%emt 0:00:09]} 15. Bb3 {[%emt 0:01:01]} Nxb3 {[%emt 0:02:29]} 16. axb3 {[%emt 0:09:04]} Qb7 {[%emt 0:05:15]} 17. Ng3 {[%emt 0:20:01]} Be6 {[%emt 0:07:27]} 18. d5 {[%emt 0:09:08]} Bd7 {[%emt 0:05:46]} 19. b4 {[%emt 0:00:31]} Ne8 {[%emt 0:06:34]} 20. Qd3 {[%emt 0:05:30]} g6 {[%emt 0:01:39]} 21. Bh6 {[%emt 0:11:01]} Ng7 {[%emt 0:00:11]} 22. Rec1 {[%emt 0:05:10]} Rxc1+ {[%emt 0:00:32]} 23. Rxc1 {[%emt 0:00:28]} Rc8 {[%emt 0:00:17]} 24. Rxc8+ {[%emt 0:01:58]} Qxc8 {[%emt 0:00:24]} 25. Qc3 {[%emt 0:01:31]} f5 {[%emt 0:05:37]} 26. Qxc8+ {[%emt 0:05:57]} Bxc8 {[%emt 0:00:07]} 27. Bxg7 {[%emt 0:00:08]} Kxg7 {[%emt 0:00:07]} 28. Ne1 {[%emt 0:01:48]} Bb7 {[%emt 0:02:40]} 29. f3 {[%emt 0:00:07]} Bh4 {[%emt 0:00:13]} 30. Nxf5+ {[%emt 0:02:16]} gxf5 {[%emt 0:00:19]} 31. Nd3 {[%emt 0:00:03]} Bd8 {[%emt 0:04:00]} 32. g3 {[%emt 0:04:09]} Bb6+ {[%emt 0:00:28]} 33. Kg2 {[%emt 0:00:09]} Kf6 {[%emt 0:01:12]} 34. g4 {[%emt 0:02:47]} fxe4 {[%emt 0:00:55]} 35. fxe4 {[%emt 0:00:01]} h5 {[%emt 0:02:00]} 36. Kg3 {[%emt 0:02:14]} hxg4 {[%emt 0:00:07]} 37. hxg4 {[%emt 0:02:08]} Bd4 {[%emt 0:00:38]} 38. Kh4 {[%emt 0:00:24]} Kg6 {[%emt 0:00:16]} 39. Nc1 {[%emt 0:00:41]} Bc8 {[%emt 0:06:22]} 40. Nd3 {[%emt 0:00:50]} Bd7 {[%emt 0:00:36]} 0-1

[Event "Lueneburger Schachfestival IM 2019"]
[Site "Lueneburg"]
[Date "2019.08.05"]
[Round "4.1"]
[White "Chennaoui, Yasin"]
[Black "Kahlert, Thomas"]
[Result "1/2-1/2"]
[ECO "A25"]
[WhiteElo "2092"]
[BlackElo "2152"]
[Annotator "ChessBase"]
[PlyCount "121"]
[EventDate "2019.08.02"]
[EventType "tourn"]
[EventCountry "GER"]
[SourceTitle "playchess.com"]
[Source "ChessBase"]
[SourceQuality "1"]
[TimeControl "40/5400+30:1800+30"]

1. c4 {[%emt 0:00:00]} e5 {[%emt 0:00:00]} 2. g3 {[%emt 0:00:00]} Nc6 {[%emt 0:00:00]} 3. Bg2 {[%emt 0:00:00]} g6 {[%emt 0:00:00]} 4. Nc3 {[%emt 0:00:00]} Bg7 {[%emt 0:00:01]} 5. e3 {[%emt 0:00:00]} d6 {[%emt 0:00:19]} 6. Nge2 {[%emt 0:00:05]} f5 {[%emt 0:00:12]} 7. d3 {[%emt 0:00:07]} Nf6 {[%emt 0:00:08]} 8. O-O {[%emt 0:00:10]} O-O {[%emt 0:00:09]} 9. Rb1 {[%emt 0:00:03]} a5 {[%emt 0:00:33]} 10. a3 {[%emt 0:00:04]} Be6 {[%emt 0:01:51]} 11. Nd5 {[%emt 0:00:12]} Qd7 {[%emt 0:01:06]} 12. Nec3 {[%emt 0:00:18]} Rab8 {[%emt 0:01:47]} 13. Qa4 {[%emt 0:01:00]} Kh8 {[%emt 0:05:52]} 14. Bd2 {[%emt 0:00:39]} Bg8 {[%emt 0:00:45]} 15. Nxf6 {[%emt 0:01:00]} Bxf6 {[%emt 0:00:14]} 16. Nd5 {[%emt 0:00:05]} Bg7 {[%emt 0:00:13]} 17. Qb5 {[%emt 0:00:27]} Rfd8 {[%emt 0:09:25]} 18. Rfc1 {[%emt 0:07:34]} Qc8 {[%emt 0:07:54]} 19. Bxa5 {[%emt 0:01:09]} Nxa5 {[%emt 0:00:52]} 20. Qxa5 {[%emt 0:00:03]} c6 {[%emt 0:01:03]} 21. Ne7 {[%emt 0:00:49]} Qd7 {[%emt 0:00:41]} 22. Nxg8 {[%emt 0:00:07]} Rxg8 {[%emt 0:00:58]} 23. Qd2 {[%emt 0:04:24]} Ra8 {[%emt 0:02:52]} 24. f4 {[%emt 0:15:08]} exf4 {[%emt 0:03:43]} 25. gxf4 {[%emt 0:00:17]} Rge8 {[%emt 0:01:55]} 26. Rf1 {[%emt 0:06:32]} Qf7 {[%emt 0:02:07]} 27. Rbc1 {[%emt 0:04:54]} Re7 {[%emt 0:05:07]} 28. Rf3 {[%emt 0:01:36]} Bf6 {[%emt 0:00:22]} 29. d4 {[%emt 0:09:18]} Qg7 {[%emt 0:03:14]} 30. c5 {[%emt 0:01:21]} dxc5 {[%emt 0:06:09]} 31. Rxc5 {[%emt 0:00:21]} Rd8 {[%emt 0:01:42]} 32. Kh1 {[%emt 0:01:36]} Red7 {[%emt 0:01:56]} 33. Rc4 {[%emt 0:01:39]} Qf7 {[%emt 0:03:51]} 34. Qc2 {[%emt 0:00:41]} Ra8 {[%emt 0:03:50]} 35. h3 {[%emt 0:03:01]} Re7 {[%emt 0:01:41]} 36. a4 {[%emt 0:02:47]} Rae8 {[%emt 0:00:51]} 37. Rc3 {[%emt 0:03:27]} Qe6 {[%emt 0:21:08]} 38. b4 {[%emt 0:04:59]} Qd6 {[%emt 0:00:17]} 39. b5 {[%emt 0:02:10]} cxb5 {[%emt 0:00:35]} 40. axb5 {[%emt 0:00:01]} Qb4 {[%emt 0:01:07]} 41. Qb3 {[%emt 0:36:37]} Qxb3 {[%emt 0:34:00]} 42. Rxb3 {[%emt 0:00:01]} Ra8 {[%emt 0:01:09]} 43. Rf1 {[%emt 0:04:41]} Ra2 {[%emt 0:00:26]} 44. Rc1 {[%emt 0:01:11]} Kg7 {[%emt 0:08:09]} 45. b6 {[%emt 0:00:47]} g5 {[%emt 0:00:00]} 46. Bxb7 {[%emt 0:00:00]} Rxb7 {[%emt 0:00:00]} 47. Rc7+ {[%emt 0:00:00]} Rxc7 {[%emt 0:00:00]} 48. bxc7 {[%emt 0:00:00]} Rc2 {[%emt 0:00:00]} 49. Rb7 {[%emt 0:00:00]} Kg6 {[%emt 0:00:00]} 50. d5 {[%emt 0:00:00]} Kh5 {[%emt 0:00:00]} 51. d6 {[%emt 0:00:00]} Kh4 {[%emt 0:00:00]} 52. d7 {[%emt 0:00:00]} Kg3 {[%emt 0:00:00]} 53. c8=Q {[%emt 0:00:00]} Bc3 {[%emt 0:00:00]} 54. Rb1 {[%emt 0:00:00]} Rh2+ {[%emt 0:00:00]} 55. Kg1 {[%emt 0:00:00]} Rg2+ {[%emt 0:00:00]} 56. Kf1 {[%emt 0:00:00]} Rf2+ {[%emt 0:00:00]} 57. Kg1 {[%emt 0:00:00]} Rg2+ {[%emt 0:00:00]} 58. Kh1 {[%emt 0:00:00]} Rh2+ {[%emt 0:00:00]} 59. Kg1 {[%emt 0:00:00]} Rg2+ {[%emt 0:00:00]} 60. Kf1 {[%emt 0:00:00]} Rf2+ {[%emt 0:00:00]} 61. Kg1 {[%emt 0:00:00]} 1/2-1/2